Workbook

Sheet 汇总 (hidden)
C1: 出口厄瓜多尔物资清单
A2: 序号 | B2: 英文名称 | C2: 中文名称 | D2: 规格型号 | E2: 单位 | F2: 数量 | G2: 净重（吨） | H2: 毛重（吨） | I2: 件数 | J2: 长×宽×高（m） | K2: 体积（m3) | L2: 单价 | M2: 金额
A3: 1 | C3: 钢构件 | E3: 吨 | F3: 173.667 | G3: 173.667 | H3: 173.667 | J3: 见明细清单 | K3: 401.863 | L3: 8010 | M3: 1391072.67 | N3: =L3*F3 -> 1391072.67
A4: 2 | B4: steel structure type C | C4: 镀锌C型钢 | D4: C100*50*15*2mm | E4: 吨 | F4: 14.202 | G4: 14.202 | H4: 14.202 | I4: 7 | J4: 见明细清单 | K4: 13.742 | L4: 8010 | M4: 113758.02 | N4: 113758.02
A5: 3 | B5: Color Steel plate | C5: 彩钢瓦 | D5: 0.4mm海蓝色 | E5: 吨 | F5: 32.363 | G5: 32.363 | H5: 36.063 | I5: 4 | J5: 1.10*1.4*11 | K5: 67.76 | L5: 11925 | M5: 385893.00 | N5: 385928.775
A6: 4 | C6: 栓钉 | D6: φ16×90 | E6: 支 | F6: 13548 | G6: 1.92 | H6: 2.86 | I6: 1 | J6: 1*1*2 | K6: 2 | L6: 1.4 | M6: 18967.27 | N6: 18967.26689
A7: 5 | C7: 自攻钉 | D7: φ5.5×40，带橡胶防水垫圈 | E7: 支 | F7: 30435 | G7: 0.3 | L7: 0.1 | M7: 3043.50 | N7: 3043.502857
A8: 6 | C8: 拉铆钉 | D8: φ5×16 | E8: 支 | F8: 11573 | G8: 0.03 | L8: 0.1 | M8: 1157.29 | N8: 1157.286027
C9: 宿舍及食堂清单图纸 | D9: 宿舍及食堂清单图纸 | E9: 盒 | F9: 1 | G9: 5
C10: 合计 | E10: 元 | M10: 1913891.75 | N10: =SUM(N3:N8) -> 1913927.521

Sheet 清单 (hidden)
D1: 第 批出口厄瓜多尔物资清单
A2: 序号 | B2: 英文名称 | C2: 中文名称 | D2: 规格型号 | E2: 单位 | F2: 数量 | G2: 单价 | H2: 总金额 | I2: 箱号 | J2: 件数 | K2: 发货状态 | L2: 单重（kg) | M2: 净重（kg） | N2: 毛重 （kg） | O2: 长×宽×高（m） | P2: 体积（m3) | Q2: HS编码
A3: 1 | C3: 3.6m平台梁-1 | D3: 口250*150*4 | E3: 根 | F3: 28 | L3: 41.8 | M3: 1170.4 | O3: 1.9*0.25*0.15 | P3: 2.00 | R3: 0:品牌类型;1:出口享惠情况;2:织造方法：机制;3:种类：工作服;4:类别：男式;5:成分含量:全棉防静电;6:品牌：无;7:无;8:GTIN;9:CAS;
A4: 2 | C4: 3.6m平台梁-2 | D4: 口250*150*4 | E4: 根 | F4: 54 | L4: 100.9 | M4: 5448.6 | O4: 4.1*0.25*0.15 | P4: 8.30 | R4: 0:品牌类型;1:出口享惠情况;2:织造方法：针织;3:成分含量;100%棉4:品牌：无品牌;5:货号：无;6:GTIN;7:CAS;
A5: 3 | C5: 3.6m平台梁-3 | D5: 口100*100*3 | E5: 根 | F5: 2 | L5: 27.4 | M5: 54.8 | O5: 3*0.1*0.1 | P5: 0.06 | R5: 0:品牌类型|1:出口享惠情况|2:结构类型：深沟球轴承|3:品牌：哈轴|4:型号:6206|5:GTIN|6:CAS|7:其他
A6: 4 | C6: 3.6m平台梁-4 | D6: 口250*150*4 | E6: 根 | F6: 6 | L6: 71.4 | M6: 428.4 | O6: 2.9*0.25*0.15 | P6: 0.65
A7: 5 | C7: 3.6m平台梁-5 | D7: 口100*100*3 | E7: 根 | F7: 28 | L7: 17.8 | M7: 498.4 | O7: 1.95*0.1*0.1 | P7: 0.55
A8: 6 | C8: 3.6m平台梁-6 | D8: 口250*150*4 | E8: 根 | F8: 24 | L8: 38.2 | M8: 916.8 | O8: 1.55*0.25*0.15 | P8: 1.40
A9: 7 | C9: 3.6m平台梁-7 | D9: 口250*150*4 | E9: 根 | F9: 80 | L9: 104.6 | M9: 8368 | O9: 4.25*0.25*0.15 | P9: 12.75
A10: 8 | C10: 3.6m平台梁-8 | D10: 口250*150*4 | E10: 根 | F10: 20 | L10: 44.3 | M10: 886 | O10: 1.8*0.15*0.25 | P10: 1.35
A11: 9 | C11: 3.6m平台梁-9 | D11: 口100*100*3 | E11: 根 | F11: 144 | L11: 20.1 | M11: 2894.4 | O11: 2.2*0.1*0.1 | P11: 3.17
A12: 10 | C12: 3.6m平台梁-10 | D12: 口200*100*3 | E12: 根 | F12: 40 | L12: 29.8 | M12: 1192 | O12: 2.15*0.2*0.1 | P12: 1.72
A13: 11 | C13: 3.6m平台梁-11 | D13: 口100*100*3 | E13: 根 | F13: 112 | L13: 18.3 | M13: 2049.6 | O13: 2*0.1*0.1 | P13: 2.24
A14: 12 | C14: 3.6m平台梁-12 | D14: 口100*100*3 | E14: 根 | F14: 36 | L14: 19.6 | M14: 705.6 | O14: 2.15*0.1*0.1 | P14: 0.77
A15: 13 | C15: 3.6m平台梁-13 | D15: 口250*150*4 | E15: 根 | F15: 8 | L15: 75.1 | M15: 600.8 | O15: 3.05*0.25*0.15 | P15: 0.92
A16: 14 | C16: 3.6m平台梁-14 | D16: 口125*100*3 | E16: 根 | F16: 8 | L16: 33.5 | M16: 268 | O16: 3.25*0.125*0.1 | P16: 0.33
A17: 15 | C17: 3.6m平台梁-15 | D17: 口200*100*3 | E17: 根 | F17: 2 | L17: 40.8 | M17: 81.6 | O17: 2.95*0.2*0.1 | P17: 0.12
A18: 16 | C18: 3.6m平台梁-16 | D18: 口250*150*4 | E18: 根 | F18: 4 | L18: 72.6 | M18: 290.4 | O18: 2.95*0.25*0.15 | P18: 0.44
A19: 17 | C19: 3.6m平台梁-17 | D19: 口100*100*3 | E19: 根 | F19: 8 | L19: 27.9 | M19: 223.2 | O19: 3.05*0.1*0.1 | P19: 0.24
A20: 18 | C20: 3.6m平台梁-18 | D20: 口250*150*4 | E20: 根 | F20: 40 | L20: 40.6 | M20: 1624 | O20: 1.65*0.25*0.15 | P20: 2.48
A21: 19 | C21: 3.6m平台梁-19 | D21: 口250*150*4 | E21: 根 | F21: 40 | L21: 102.2 | M21: 4088 | O21: 4.15*0.25*0.15 | P21: 6.23
A22: 20 | C22: 6.66m平台梁-1 | D22: 口200*150*6 | E22: 根 | F22: 56 | L22: 54.1 | M22: 3029.6 | O22: 1.7*0.2*0.15 | P22: 2.86
A23: 21 | C23: 6.66m平台梁-2 | D23: 口200*150*6 | E23: 根 | F23: 32 | L23: 140.1 | M23: 4483.2 | O23: 4.4*0.2*0.15 | P23: 4.22
A24: 22 | C24: 6.66m平台梁-3 | D24: 口200*150*6 | E24: 根 | F24: 6 | L24: 95.5 | M24: 573 | O24: 3*0.2*0.15 | P24: 0.54
A25: 23 | C25: 6.66m平台梁-4 | D25: 口200*150*6 | E25: 根 | F25: 4 | L25: =455.3-L26 -> 264.5 | M25: =1821.2-M26 -> 1058 | O25: 8.3*0.2*0.15 | P25: 1.00
E26: 根 | F26: 4 | L26: =31.8*6 -> 190.8 | M26: =F26*L26 -> 763.2 | O26: 6*0.2*0.15 | P26: =6*0.2*0.15*4 -> 0.72
A27: 24 | C27: 6.66m平台梁-5 | D27: 口200*150*6 | E27: 根 | F27: 48 | L27: 138.5 | M27: 6648 | O27: 4.35*0.2*0.15 | P27: 6.26
A28: 25 | C28: 6.66m平台梁-6 | D28: 口200*150*6 | E28: 根 | F28: 16 | L28: 97.1 | M28: 1553.6 | O28: 3.05*0.2*0.15 | P28: 1.46
A29: 26 | C29: 窗梁-1 | D29: 口150*2 | E29: 根 | F29: 4 | L29: 27 | M29: 108 | O29: 2.9*0.15*0.15 | P29: 0.26
A30: 27 | C30: 窗梁-2 | D30: 口150*2 | E30: 根 | F30: 80 | L30: 17.2 | M30: 1376 | O30: 1.85*0.15*0.15 | P30: 3.33
A31: 28 | C31: 窗梁-3 | D31: 口150*2 | E31: 根 | F31: 8 | L31: 28.3 | M31: 226.4 | O31: 3.05*0.15*0.15 | P31: 0.55
A32: 29 | C32: 钢架-1 | E32: 榀 | F32: 12 | L32: 556.51 | M32: 6678.12 | O32: 11.3*2.207*0.1 | P32: =50.4877734-P33 -> 50.15
E33: 榀 | F33: 24 | L33: =13.85*0.7 -> 9.695 | M33: =L33*F33 -> 232.68 | O33: 0.7*0.2*0.1 | P33: =1.4*0.2*0.1*12 -> 0.336
A34: 30 | C34: 钢架-2 | E34: 榀 | F34: 16 | L34: 191 | M34: 3056 | O34: 6.864*1.553*0.1 | P34: 17.06
A35: 31 | C35: 钢架-3 | E35: 榀 | F35: 8 | L35: 550.9 | M35: 4407.2 | O35: 10.984*2.16*0.1 | P35: 28.47 | R35: =Q35*F35 -> 0
A36: 32 | C36: 钢架-4 | E36: 榀 | F36: 2 | L36: 374.3 | M36: 748.6 | O36: 8.459*2.21*0.1 | P36: 5.61
A37: 33 | C37: 钢架-5 | E37: 榀 | F37: 4 | L37: 303.2 | M37: 1212.8 | O37: 10.166*2.213*0.1 | P37: 13.50
A38: 34 | C38: 钢架-6 | E38: 榀 | F38: 2 | L38: =575.9-L39 -> 556.51 | M38: =L38*F38 -> 1113.02 | O38: 11.3*2.210*0.1 | P38: =8.426067-P39 -> 8.37
E39: 榀 | F39: 2 | L39: =13.85*1.4 -> 19.39 | M39: =L39*F39 -> 38.78 | O39: 1.4*0.2*0.1 | P39: =1.4*0.2*0.1*2 -> 0.056
A40: 35 | C40: 钢梯-1 | E40: 副 | F40: 4 | L40: 289.1 | M40: 1156.4 | O40: 2.617*1.425*0.25 | P40: 3.09
A41: 36 | C41: 钢梯-2 | E41: 副 | F41: 4 | L41: 370.9 | M41: 1483.6 | O41: 3.203*1.425*0.25 | P41: 4.56
A42: 37 | C42: 钢梯-3 | E42: 副 | F42: 2 | L42: 370.8 | M42: 741.6 | O42: 3.203*1.425*0.25 | P42: 2.28
A43: 38 | C43: 钢梯-4 | E43: 副 | F43: 2 | L43: 287.9 | M43: 575.8 | O43: 2.617*1.425*0.25 | P43: 1.86
A44: 39 | C44: 钢梯-5 | E44: 副 | F44: 2 | L44: 293.7 | M44: 587.4 | O44: 2.278*1.910*0.25 | P44: 2.18
A45: 40 | C45: 钢梯平台梁-1 | D45: 口200*100*3 | E45: 根 | F45: 12 | L45: 19.4 | M45: 232.8 | O45: 1.4*0.2*0.1 | P45: 0.34
A46: 41 | C46: 钢梯平台梁-2 | D46: 口250*150*4 | E46: 根 | F46: 4 | L46: 72.6 | M46: 290.4 | O46: 2.95*0.25*0.15 | P46: 0.44
A47: 42 | C47: 钢梯平台梁-3 | D47: 口200*100*3 | E47: 根 | F47: 2 | L47: 20.8 | M47: 41.6 | O47: 1.5*0.2*0.1 | P47: 0.06
A48: 43 | C48: 钢梯平台梁-4 | D48: 口250*150*4 | E48: 根 | F48: 2 | L48: 71.4 | M48: 142.8 | O48: 2.9*0.25*0.15 | P48: 0.22
A49: 44 | C49: 钢梯平台梁-5 | D49: 口250*150*4 | E49: 根 | F49: 2 | L49: 75.1 | M49: 150.2 | O49: 3.05*0.25*0.15 | P49: 0.23
A50: 45 | C50: 钢梯平台梁-6 | D50: 口200*100*3 | E50: 根 | F50: 2 | L50: 20.5 | M50: 41 | O50: 1.479*0.2*0.1 | P50: 0.06
A51: 46 | C51: 钢梯平台梁-7 | D51: 口250*150*4 | E51: 根 | F51: 2 | L51: 76.3 | M51: 152.6 | O51: 3.1*0.25*0.15 | P51: 0.23
A52: 47 | C52: 钢梯平台梁-8 | D52: 口200*100*3 | E52: 根 | F52: 2 | L52: 21.5 | M52: 43 | O52: 1.55*0.2*0.1 | P52: 0.06
A53: 48 | C53: 钢梯平台梁-9 | D53: 口250*150*4 | E53: 根 | F53: 2 | L53: 73.9 | M53: 147.8 | O53: 3*0.25*0.15 | P53: 0.23
A54: 49 | C54: 钢柱-1 | E54: 根 | F54: 12 | L54: 60.1 | M54: 721.2 | O54: 1.514*0.35*0.35 | P54: 2.23
A55: 50 | C55: 钢柱-2 | E55: 根 | F55: 174 | L55: 380.4 | M55: =L55*F55 -> 66189.6 | O55: 6.1*0.4*0.4 | P55: 169.80
A56: 51 | C56: 屋面梁-1 | D56: 口200*100*3 | E56: 根 | F56: 2 | L56: 42.2 | M56: 84.4 | O56: 3.05*0.2*0.1 | P56: 0.12
A57: 52 | C57: 屋面梁-2 | D57: 口200*100*3 | E57: 根 | F57: 4 | L57: 56.7 | M57: 226.8 | O57: 4.091*0.2*0.1 | P57: 0.33
A58: 53 | C58: 屋面梁-3 | D58: 口200*100*3 | E58: 根 | F58: 16 | L58: 10.5 | M58: 168 | O58: 0.771*0.2*0.1 | P58: 0.25
A59: 54 | C59: 屋面梁-4 | D59: 口200*100*3 | E59: 根 | F59: 16 | L59: 10.5 | M59: 168 | O59: 0.771*0.2*0.1 | P59: 0.25
A60: 55 | C60: 屋面梁-5 | D60: 口200*100*3 | E60: 根 | F60: 2 | L60: 56.1 | M60: 112.2 | O60: 4.405*0.2*0.1 | P60: 0.18
A61: 56 | C61: 屋面梁-6 | D61: 口200*100*3 | E61: 根 | F61: 32 | L61: 86.6 | M61: 2771.2 | O61: 6.268*0.2*0.1 | P61: 4.01
A62: 57 | C62: 屋面梁-7 | D62: 口200*100*3 | E62: 根 | F62: 16 | L62: 82.3 | M62: 1316.8 | O62: 6.016*0.2*0.1 | P62: 1.93
A63: 58 | C63: 屋面梁-8 | D63: 口200*100*3 | E63: 根 | F63: 16 | L63: 82.3 | M63: 1316.8 | O63: 6.016*0.2*0.1 | P63: 1.93
A64: 59 | C64: 屋面梁-9 | D64: 口200*100*3 | E64: 根 | F64: 2 | L64: 12.5 | M64: 25 | O64: 0.895*0.2*0.1 | P64: 0.04
A65: 60 | C65: 屋面梁-10 | D65: 口200*100*3 | E65: 根 | F65: 2 | L65: 22 | M65: 44 | O65: 1.631*0.2*0.1 | P65: 0.07
A66: 61 | C66: 屋面梁-11 | D66: 口200*100*3 | E66: 根 | F66: 4 | L66: 120.1 | M66: 480.4 | O66: 8.745*0.2*0.1 | P66: 0.70
A67: 62 | C67: 屋面梁-12 | D67: 口200*100*3 | E67: 根 | F67: 2 | L67: =198-L68 -> 115.2 | M67: =396-M68 -> 230.4 | O67: 8.3*0.2*0.1 | P67: 0.45
E68: 根 | F68: 2 | L68: =13.8*6 -> 82.8 | M68: =L68*F68 -> 165.6 | O68: 6*0.2*0.1 | P68: =6*0.2*0.1 -> 0.12
A69: 63 | C69: 屋面梁-13 | D69: 口200*100*3 | E69: 根 | F69: 8 | L69: 20.9 | M69: 167.2 | O69: 1.59*0.2*0.1 | P69: 0.25
A70: 64 | C70: 屋面梁-14 | D70: 口200*100*3 | E70: 根 | F70: 6 | L70: 23.3 | M70: 139.8 | O70: 1.763*0.2*0.1 | P70: 0.21
A71: 65 | C71: 屋面梁-15 | D71: 口200*100*3 | E71: 根 | F71: 4 | L71: 7.9 | M71: 31.6 | O71: 0.583*0.2*0.1 | P71: 0.05
A72: 66 | C72: 屋面梁-16 | D72: 口200*100*3 | E72: 根 | F72: 4 | L72: 7.9 | M72: 31.6 | O72: 0.583*0.2*0.1 | P72: 0.05
A73: 67 | C73: 屋面梁-17 | D73: 口200*100*3 | E73: 根 | F73: 8 | L73: 123.8 | M73: 990.4 | O73: 8.963*0.2*0.1 | P73: 1.43
A74: 68 | C74: 屋面梁-18 | D74: 口200*100*3 | E74: 根 | F74: 4 | L74: 120.1 | M74: 480.4 | O74: 8.745*0.2*0.1 | P74: 0.70
A75: 69 | C75: 圆管 | D75: φ50*3，L=1167 | E75: 根 | F75: 52 | L75: 3.95 | M75: 205.4 | O75: 1.167*0.05*0.05 | P75: 0.52
A76: 70 | C76: 圆管 | D76: φ50*3，L=6000 | E76: 根 | F76: 9 | L76: 20.2 | M76: 181.8 | O76: 6*0.05*0.05 | P76: 0.18
A77: 71 | C77: 圆管 | D77: φ30*3，L=6000 | E77: 根 | F77: 13 | L77: 11.4 | M77: 148.2 | O77: 6*0.03*0.03 | P77: 0.01
A78: 72 | C78: 扁铁 | D78: 3*100,L=6000 | E78: 根 | F78: 8 | L78: 14.1 | M78: 112.8 | O78: 6*0.1*0.003 | P78: 0.01
A79: 73 | C79: 天沟-1 | E79: 件 | F79: 4 | L79: 18.3 | M79: 73.2 | O79: 8.8*0.2*0.12 | P79: 0.84
A80: 74 | C80: 天沟-2 | E80: 件 | F80: 4 | L80: 18.3 | M80: 73.2 | O80: 8.8*0.2*0.12 | P80: 0.84
A81: 75 | C81: 天沟-3 | E81: 件 | F81: 32 | L81: 12.7 | M81: 406.4 | O81: 6.1*0.2*0.12 | P81: 4.68
A82: 76 | C82: 楼层板-1 | D82: L=1850 | E82: 件 | F82: 48 | L82: 14.16 | M82: =L82*F82 -> 679.7 | O82: 1.85*1.025*0.051 | P82: 0.26
A83: 77 | C83: 楼层板-2 | D83: L=2050 | E83: 件 | F83: 12 | L83: 15.69 | M83: 188.3 | O83: 2.05*1.025*0.051 | P83: 0.24
A84: 78 | C84: 楼层板-3 | D84: L=5350 | E84: 件 | F84: 160 | L84: 40.95 | M84: 6551.6 | O84: 5.35*1.025*0.051 | P84: 1.24
A85: 79 | C85: 楼层板-4 | D85: L=7150 | E85: 件 | F85: 230 | L85: 54.72 | M85: 12586.6 | O85: 7.15*1.025*0.051 | P85: 1.03
A86: 80 | C86: 楼层板-5 | D86: L=6400 | E86: 件 | F86: 28 | L86: 48.98 | M86: 1371.6 | O86: 6.40*1.025*0.051 | P86: 0.41
A87: 81 | C87: 楼层板-6 | D87: L=1875 | E87: 件 | F87: 24 | L87: 14.35 | M87: 344.4 | O87: 1.87*1.025*0.051 | P87: 0.23

Sheet 矿石输送胶带
D1: 出口厄瓜多尔钢构件制作清单
A2: 序号 | B2: 英文名称 | C2: 中文名称 | D2: 规格型号 | E2: 单位 | F2: 数量 | G2: 单价 | H2: 总金额 | I2: 箱号 | J2: 件数 | K2: 发货状态 | L2: 单重（kg) | M2: 净重（kg） | N2: 毛重 （kg） | O2: 长（m） | P2: 宽（m） | Q2: 高（m） | R2: 长×宽×高（m） | S2: 体积（m3)
A3: 1 | B3: JB-1 | C3: 夹板-1 | D3: PL16*800 | E3: 块 | F3: 68 | L3: 60.3 | M3: =F3*L3 -> 4100.4 | O3: 0.6 | P3: 0.8 | Q3: 0.016 | R3: 0.6*0.8*0.016 | S3: =O3*P3*Q3*F3 -> 0.522 | T3: 注：标红色栏为超宽件
A4: 2 | B4: JB-2 | C4: 夹板-2 | D4: PL20*300 | E4: 块 | F4: 68 | L4: 32 | M4: =F4*L4 -> 2176 | O4: 0.68 | P4: 0.3 | Q4: 0.02 | R4: 0.68*0.3*0.02 | S4: =O4*P4*Q4*F4 -> 0.277
A5: 3 | B5: JB-3 | C5: 夹板-3 | D5: PL20*130 | E5: 块 | F5: 136 | L5: 13.9 | M5: 1890.4 | O5: 0.68 | P5: 0.13 | Q5: 0.02 | R5: 0.68*0.13*0.02 | S5: 0.240
A6: 4 | B6: JB-4 | C6: 夹板-4 | D6: PL12*200 | E6: 块 | F6: 32 | L6: 7.2 | M6: 230.4 | O6: 0.38 | P6: 0.2 | Q6: 0.012 | R6: 0.38*0.2*0.012 | S6: 0.029
A7: 5 | B7: JB-5 | C7: 夹板-5 | D7: PL12*420 | E7: 块 | F7: 116 | L7: 15 | M7: 1740 | O7: 0.38 | P7: 0.42 | Q7: 0.012 | R7: 0.38*0.42*0.012 | S7: 0.222
A8: 6 | B8: JB-6 | C8: 夹板-6 | D8: PL12*280 | E8: 块 | F8: 16 | L8: 10 | M8: 160 | O8: 0.38 | P8: 0.28 | Q8: 0.012 | R8: 0.38*0.28*0.012 | S8: 0.020
A9: 7 | B9: JB-7 | C9: 夹板-7 | D9: PL12*250 | E9: 块 | F9: 48 | L9: 8.9 | M9: 427.2 | O9: 0.38 | P9: 0.25 | Q9: 0.012 | R9: 0.38*0.25*0.012 | S9: 0.055
A10: 8 | B10: JB-8 | C10: 夹板-8 | D10: PL12*496 | E10: 块 | F10: 176 | L10: 17.8 | M10: 3132.8 | O10: 0.38 | P10: 0.496 | Q10: 0.012 | R10: 0.38*0.496*0.012 | S10: 0.398
A11: 9 | B11: JB-9 | C11: 夹板-9 | D11: PL10*250 | E11: 块 | F11: 400 | L11: 7.5 | M11: 3000 | O11: 0.38 | P11: 0.25 | Q11: 0.01 | R11: 0.38*0.25*0.01 | S11: 0.380
A12: 10 | B12: JB-10 | C12: 夹板-10 | D12: PL10*200 | E12: 块 | F12: 248 | L12: 6 | M12: 1488 | O12: 0.38 | P12: 0.2 | Q12: 0.01 | R12: 0.38*0.2*0.01 | S12: 0.188
A13: 11 | B13: JB-11 | C13: 夹板-11 | D13: PL20*320 | E13: 块 | F13: 16 | L13: 19.1 | M13: 305.6 | O13: 0.38 | P13: 0.32 | Q13: 0.02 | R13: 0.38*0.32*0.02 | S13: 0.039
A14: 12 | B14: JB-12 | C14: 夹板-12 | D14: PL20*407 | E14: 块 | F14: 16 | L14: 39.6 | M14: 633.6 | O14: 0.62 | P14: 0.407 | Q14: 0.02 | R14: 0.62*0.407*0.02 | S14: 0.081
A15: 13 | B15: JB-13 | C15: 夹板-13 | D15: PL20*144 | E15: 块 | F15: 32 | L15: 14 | M15: 448 | O15: 0.62 | P15: 0.144 | Q15: 0.02 | R15: 0.62*0.144*0.02 | S15: 0.057
A16: 14 | B16: JB-14 | C16: 夹板-14 | D16: PL16*300 | E16: 块 | F16: 176 | L16: 23.4 | M16: 4118.4 | O16: 0.62 | P16: 0.3 | Q16: 0.016 | R16: 0.62*0.3*0.016 | S16: 0.524
A17: 15 | B17: JB-15 | C17: 夹板-15 | D17: PL16*135 | E17: 块 | F17: 352 | L17: 10.5 | M17: 3696 | O17: 0.62 | P17: 0.135 | Q17: 0.016 | R17: 0.62*0.135*0.016 | S17: 0.471
A18: 16 | B18: JB-16 | C18: 夹板-16 | D18: PL16*300 | E18: 块 | F18: 72 | L18: 23.4 | M18: 1684.8 | O18: 0.62 | P18: 0.3 | Q18: 0.016 | R18: 0.62*0.3*0.016 | S18: 0.214
A19: 17 | B19: JB-17 | C19: 夹板-17 | D19: PL16*130 | E19: 块 | F19: 144 | L19: 10.1 | M19: 1454.4 | O19: 0.62 | P19: 0.13 | Q19: 0.016 | R19: 0.62*0.13*0.016 | S19: 0.186
A20: 18 | B20: THB-1 | C20: 托焊板1 | D20: PL3*250 | E20: 块 | F20: 720 | L20: 0.2 | M20: 144 | O20: 0.03 | P20: 0.25 | Q20: 0.003 | R20: 0.03*0.25*0.003 | S20: 0.016
A21: 19 | B21: THB-2 | C21: 托焊板2 | D21: PL3*300 | E21: 块 | F21: 472 | L21: 0.2 | M21: 94.4 | O21: 0.03 | P21: 0.3 | Q21: 0.003 | R21: 0.03*0.3*0.003 | S21: 0.013
A22: 20 | B22: THB-3 | C22: 托焊板3 | D22: PL3*250 | E22: 块 | F22: 387 | L22: 0.2 | M22: 77.4 | O22: 0.03 | P22: 0.25 | Q22: 0.003 | R22: 0.03*0.25*0.003 | S22: =O22*P22*Q22*F22 -> 0.009
A23: 21 | B23: ZJDK-1 | C23: 柱脚垫块-1 | D23: PL20*100 | E23: 块 | F23: 72 | L23: 1.6 | M23: 115.2 | O23: 0.1 | P23: 0.1 | Q23: 0.02 | R23: 0.1*0.1*0.02 | S23: =O23*P23*Q23*F23 -> 0.014
A24: 22 | B24: ZJDK-2 | C24: 柱脚垫块-2 | D24: PL20*80 | E24: 块 | F24: 4 | L24: 1 | M24: 4 | O24: 0.08 | P24: 0.08 | Q24: 0.02 | R24: 0.08*0.08*0.02 | S24: 0.001
A25: 23 | B25: ZJDK-3 | C25: 柱脚垫块-3 | D25: PL20*80 | E25: 块 | F25: 252 | L25: 1 | M25: 252 | O25: 0.08 | P25: 0.08 | Q25: 0.02 | R25: 0.08*0.08*0.02 | S25: 0.032
A26: 24 | B26: ZJDK-4 | C26: 柱脚垫块-4 | D26: PL20*80 | E26: 块 | F26: 8 | L26: 1 | M26: 8 | O26: 0.08 | P26: 0.08 | Q26: 0.02 | R26: 0.08*0.08*0.02 | S26: 0.001
A27: 25 | B27: CG-1 | C27: 套管-1 | D27: PIP32*2.5 | E27: 根 | F27: 44 | L27: 2.3 | M27: 101.2 | O27: 1.302 | P27: 0.032 | Q27: 0.032 | R27: 1.302*0.032*0.032 | S27: 0.059
A28: 26 | B28: GDDK-1 | C28: 轨道垫块-1 | D28: PL60*28 | E28: 块 | F28: 216 | L28: 0.9 | M28: 194.4 | O28: 0.079 | P28: 0.06 | Q28: 0.028 | R28: 0.079*0.06*0.028 | S28: 0.029
A29: 27 | B29: GDG-1 | C29: 单轨吊-1 | D29: I56A | E29: 根 | F29: 8 | L29: 335.2 | M29: 2681.6 | O29: 3.198 | P29: 0.166 | Q29: 0.56 | R29: 3.198*0.166*0.56 | S29: 2.378
A30: 28 | B30: GDG-2 | C30: 单轨吊-2 | D30: I56A | E30: 根 | F30: 1 | L30: 319.4 | M30: 319.4 | O30: 3.048 | P30: 0.166 | Q30: 0.56 | R30: 3.048*0.166*0.56 | S30: 0.283
A31: 29 | B31: GDG-3 | C31: 单轨吊-3 | D31: I56A | E31: 根 | F31: 1 | L31: 261.8 | M31: 261.8 | O31: 2.498 | P31: 0.166 | Q31: 0.56 | R31: 2.498*0.166*0.56 | S31: 0.232
A32: 30 | B32: GDG-4 | C32: 单轨吊-4 | D32: I56A | E32: 根 | F32: 1 | L32: 487.1 | M32: 487.1 | O32: 4.648 | P32: 0.166 | Q32: 0.56 | R32: 4.648*0.166*0.56 | S32: 0.432
A33: 31 | B33: GDG-5 | C33: 单轨吊-5 | D33: I56A | E33: 根 | F33: 5 | L33: 487.1 | M33: 2435.5 | O33: 4.648 | P33: 0.166 | Q33: 0.56 | R33: 4.648*0.166*0.56 | S33: 2.160
A34: 32 | B34: GDG-6 | C34: 单轨吊-6 | D34: I56A | E34: 根 | F34: 1 | L34: 481.9 | M34: 481.9 | O34: 4.598 | P34: 0.166 | Q34: 0.56 | R34: 4.598*0.166*0.56 | S34: 0.427
A35: 33 | B35: GDG-7 | C35: 单轨吊-7 | D35: I56A | E35: 根 | F35: 1 | L35: 445.2 | M35: 445.2 | O35: 4.248 | P35: 0.166 | Q35: 0.56 | R35: 4.248*0.166*0.56 | S35: 0.395
A36: 34 | B36: GDG-8 | C36: 单轨吊-8 | D36: I56A | E36: 根 | F36: 2 | L36: 455.7 | M36: 911.4 | O36: 4.348 | P36: 0.166 | Q36: 0.56 | R36: 4.348*0.166*0.56 | S36: 0.808
A37: 35 | B37: GDG-9 | C37: 单轨吊-9 | D37: I56A | E37: 根 | F37: 1 | L37: 455.7 | M37: 455.7 | O37: 4.348 | P37: 0.166 | Q37: 0.56 | R37: 4.348*0.166*0.56 | S37: 0.404
A38: 36 | B38: GDG-10 | C38: 单轨吊-10 | D38: I56A | E38: 根 | F38: 1 | L38: 365.9 | M38: 365.9 | O38: 3.449 | P38: 0.212 | Q38: 0.56 | R38: 3.449*0.212*0.56 | S38: 0.409
A39: 37 | B39: GDG-11 | C39: 单轨吊-11 | D39: I56A | E39: 根 | F39: 1 | L39: 308.3 | M39: 308.3 | O39: 2.899 | P39: 0.212 | Q39: 0.56 | R39: 2.899*0.212*0.56 | S39: 0.344
A40: 38 | B40: GDG-12 | C40: 单轨吊-12 | D40: I56A | E40: 根 | F40: 2 | L40: 318.8 | M40: 637.6 | O40: 2.999 | P40: 0.212 | Q40: 0.56 | R40: 2.999*0.212*0.56 | S40: 0.712
A41: 39 | B41: GHJ-1 | C41: 钢桁架-1 | D41: HM294*200*8*12 | E41: 根 | F41: 67 | L41: 255.1 | M41: 17091.7 | O41: 4.67 | P41: 0.2 | Q41: 0.294 | R41: 4.67*0.2*0.294 | S41: 18.398
A42: 40 | B42: GHJ-2 | C42: 钢桁架-2 | D42: HM294*200*8*12 | E42: 根 | F42: 2 | L42: 255.1 | M42: 510.2 | O42: 4.67 | P42: 0.2 | Q42: 0.294 | R42: 4.67*0.2*0.294 | S42: 0.549
A43: 41 | B43: GHJ-3 | C43: 钢桁架-3 | D43: HM294*200*8*12 | E43: 根 | F43: 2 | L43: 255.1 | M43: 510.2 | O43: 4.67 | P43: 0.2 | Q43: 0.294 | R43: 4.67*0.2*0.294 | S43: 0.549
A44: 42 | B44: GHJ-4 | C44: 钢桁架-4 | D44: HM340*250*9*14 | E44: 根 | F44: 1 | L44: 370.9 | M44: 370.9 | O44: 4.38 | P44: 0.44 | Q44: 0.34 | R44: 4.38*0.44*0.34 | S44: 0.655
A45: 43 | B45: GHJ-5 | C45: 钢桁架-5 | D45: HM340*250*9*14 | E45: 根 | F45: 10 | L45: 337.2 | M45: 3372 | O45: 4.38 | P45: 0.25 | Q45: 0.34 | R45: 4.38*0.25*0.34 | S45: 3.723
A46: 44 | B46: GHJ-6 | C46: 钢桁架-6 | D46: HM588*300*12*20 | E46: 根 | F46: 1 | L46: 2027.9 | M46: 2027.9 | O46: 13.5 | P46: 0.3 | Q46: 0.588 | R46: 13.5*0.3*0.588 | S46: 2.381
A47: 45 | B47: GHJ-7 | C47: 钢桁架-7 | D47: HM588*300*12*20 | E47: 根 | F47: 1 | L47: 2051.8 | M47: 2051.8 | O47: 13 | P47: 0.4 | Q47: 0.768 | R47: 13*0.4*0.768 | S47: 3.994
A48: 46 | B48: GHJ-8 | C48: 钢桁架-8 | D48: HM588*300*12*20 | E48: 根 | F48: 1 | L48: 2051.8 | M48: 2051.8 | O48: 13 | P48: 0.4 | Q48: 0.768 | R48: 13*0.4*0.768 | S48: 3.994
A49: 47 | B49: GHJ-9 | C49: 钢桁架-9 | D49: HM588*300*12*20 | E49: 根 | F49: 1 | L49: 2197.6 | M49: 2197.6 | O49: 14 | P49: 0.4 | Q49: 0.768 | R49: 14*0.4*0.768 | S49: 4.301
A50: 48 | B50: GHJ-10 | C50: 钢桁架-10 | D50: HM588*300*12*20 | E50: 根 | F50: 1 | L50: 2197.6 | M50: 2197.6 | O50: 14 | P50: 0.4 | Q50: 0.768 | R50: 14*0.4*0.768 | S50: 4.301
A51: 49 | B51: GHJ-11 | C51: 钢桁架-11 | D51: HM588*300*12*20 | E51: 根 | F51: 1 | L51: 724 | M51: 724 | O51: 4.123 | P51: 0.44 | Q51: 0.816 | R51: 4.123*0.44*0.816 | S51: 1.480
A52: 50 | B52: GHJ-12 | C52: 钢桁架-12 | D52: HM588*300*12*20 | E52: 根 | F52: 1 | L52: 724 | M52: 724 | O52: 4.123 | P52: 0.44 | Q52: 0.831 | R52: 4.123*0.44*0.831 | S52: 1.508
A53: 51 | B53: GHJ-13 | C53: 钢桁架-13 | D53: HM588*300*12*20 | E53: 根 | F53: 1 | L53: 1175.6 | M53: 1175.6 | O53: 6.992 | P53: 0.4 | Q53: 0.844 | R53: 6.992*0.4*0.844 | S53: 2.360
A54: 52 | B54: GHJ-14 | C54: 钢桁架-14 | D54: HM588*300*12*20 | E54: 根 | F54: 1 | L54: 1175.6 | M54: 1175.6 | O54: 6.992 | P54: 0.4 | Q54: 0.844 | R54: 6.992*0.4*0.844 | S54: 2.360
A55: 53 | B55: GHJ-15 | C55: 钢桁架-15 | D55: HM588*300*12*20 | E55: 根 | F55: 1 | L55: 2077.3 | M55: 2077.3 | O55: 13 | P55: 0.4 | Q55: 0.78 | R55: 13*0.4*0.78 | S55: 4.056
A56: 54 | B56: GHJ-16 | C56: 钢桁架-16 | D56: HM588*300*12*20 | E56: 根 | F56: 1 | L56: 2077.3 | M56: 2077.3 | O56: 13 | P56: 0.4 | Q56: 0.78 | R56: 13*0.4*0.78 | S56: 4.056
A57: 55 | B57: GHJ-17 | C57: 钢桁架-17 | D57: HM588*300*12*20 | E57: 根 | F57: 1 | L57: 2062.5 | M57: 2062.5 | O57: 13 | P57: 0.4 | Q57: 0.78 | R57: 13*0.4*0.78 | S57: 4.056
A58: 56 | B58: GHJ-18 | C58: 钢桁架-18 | D58: HM588*300*12*20 | E58: 根 | F58: 1 | L58: 2062.5 | M58: 2062.5 | O58: 13 | P58: 0.4 | Q58: 0.78 | R58: 13*0.4*0.78 | S58: 4.056
A59: 57 | B59: GHJ-19 | C59: 钢桁架-19 | D59: HM588*300*12*20 | E59: 根 | F59: 1 | L59: 2062.5 | M59: 2062.5 | O59: 13 | P59: 0.4 | Q59: 0.78 | R59: 13*0.4*0.78 | S59: 4.056
A60: 58 | B60: GHJ-20 | C60: 钢桁架-20 | D60: HM588*300*12*20 | E60: 根 | F60: 1 | L60: 2062.5 | M60: 2062.5 | O60: 13 | P60: 0.4 | Q60: 0.78 | R60: 13*0.4*0.78 | S60: 4.056
A61: 59 | B61: GHJ-21 | C61: 钢桁架-21 | D61: HM588*300*12*20 | E61: 根 | F61: 1 | L61: 1969.8 | M61: 1969.8 | O61: 13 | P61: 0.3 | Q61: 0.588 | R61: 13*0.3*0.588 | S61: 2.293
A62: 60 | B62: GHJ-22 | C62: 钢桁架-22 | D62: HM588*300*12*20 | E62: 根 | F62: 1 | L62: 1969.8 | M62: 1969.8 | O62: 13 | P62: 0.3 | Q62: 0.588 | R62: 13*0.3*0.588 | S62: 2.293
A63: 61 | B63: GHJ-23 | C63: 钢桁架-23 | D63: HM588*300*12*20 | E63: 根 | F63: 1 | L63: 2223.1 | M63: 2223.1 | O63: 14 | P63: 0.4 | Q63: 0.78 | R63: 14*0.4*0.78 | S63: 4.368
A64: 62 | B64: GHJ-24 | C64: 钢桁架-24 | D64: HM588*300*12*20 | E64: 根 | F64: 1 | L64: 2223.1 | M64: 2223.1 | O64: 14 | P64: 0.4 | Q64: 0.78 | R64: 14*0.4*0.78 | S64: 4.368
A65: 63 | B65: GHJ-25 | C65: 钢桁架-25 | D65: HM588*300*12*20 | E65: 根 | F65: 1 | L65: 2223.1 | M65: 2223.1 | O65: 14 | P65: 0.4 | Q65: 0.78 | R65: 14*0.4*0.78 | S65: 4.368
A66: 64 | B66: GHJ-26 | C66: 钢桁架-26 | D66: HM588*300*12*20 | E66: 根 | F66: 1 | L66: 2223.1 | M66: 2223.1 | O66: 14 | P66: 0.4 | Q66: 0.78 | R66: 14*0.4*0.78 | S66: 4.368
A67: 65 | B67: GHJ-27 | C67: 钢桁架-27 | D67: HM588*300*12*20 | E67: 根 | F67: 1 | L67: 2150.2 | M67: 2150.2 | O67: 13.5 | P67: 0.4 | Q67: 0.78 | R67: 13.5*0.4*0.78 | S67: 4.212
A68: 66 | B68: GHJ-28 | C68: 钢桁架-28 | D68: HM588*300*12*20 | E68: 根 | F68: 1 | L68: 2150.2 | M68: =F68*L68 -> 2150.2 | O68: 13.5 | P68: 0.4 | Q68: 0.78 | R68: 13.5*0.4*0.78 | S68: 4.212
A69: 67 | B69: GHJ-29 | C69: 钢桁架-29 | D69: HM588*300*12*20 | E69: 根 | F69: 1 | L69: 2150.2 | M69: 2150.2 | O69: 13.5 | P69: 0.4 | Q69: 0.78 | R69: 13.5*0.4*0.78 | S69: 4.212
A70: 68 | B70: GHJ-30 | C70: 钢桁架-30 | D70: HM588*300*12*20 | E70: 根 | F70: 1 | L70: 2150.2 | M70: 2150.2 | O70: 13.5 | P70: 0.4 | Q70: 0.78 | R70: 13.5*0.4*0.78 | S70: 4.212
A71: 69 | B71: GHJ-31 | C71: 钢桁架-31 | D71: HM588*300*12*20 | E71: 根 | F71: 1 | L71: 2150.2 | M71: 2150.2 | O71: 13.5 | P71: 0.4 | Q71: 0.78 | R71: 13.5*0.4*0.78 | S71: 4.212
A72: 70 | B72: GHJ-32 | C72: 钢桁架-32 | D72: HM588*300*12*20 | E72: 根 | F72: 1 | L72: 2150.2 | M72: 2150.2 | O72: 13.5 | P72: 0.4 | Q72: 0.78 | R72: 13.5*0.4*0.78 | S72: 4.212
A73: 71 | B73: GHJ-33 | C73: 钢桁架-33 | D73: HM588*300*12*20 | E73: 根 | F73: 1 | L73: 2150.2 | M73: 2150.2 | O73: 13.5 | P73: 0.4 | Q73: 0.78 | R73: 13.5*0.4*0.78 | S73: 4.212
A74: 72 | B74: GHJ-34 | C74: 钢桁架-34 | D74: HM588*300*12*20 | E74: 根 | F74: 1 | L74: 2150.2 | M74: 2150.2 | O74: 13.5 | P74: 0.4 | Q74: 0.78 | R74: 13.5*0.4*0.78 | S74: 4.212
A75: 73 | B75: GHJ-35 | C75: 钢桁架-35 | D75: HM588*300*12*20 | E75: 根 | F75: 1 | L75: 2027.9 | M75: 2027.9 | O75: 13.5 | P75: 0.3 | Q75: 0.588 | R75: 13.5*0.3*0.588 | S75: 2.381
A76: 74 | B76: GHJ-36 | C76: 钢桁架-36 | D76: HM588*300*12*20 | E76: 根 | F76: 1 | L76: 1736.2 | M76: 1736.2 | O76: 11.5 | P76: 0.3 | Q76: 0.588 | R76: 11.5*0.3*0.588 | S76: 2.029
A77: 75 | B77: GHJ-37 | C77: 钢桁架-37 | D77: HM588*300*12*20 | E77: 根 | F77: 1 | L77: 1736.2 | M77: 1736.2 | O77: 11.5 | P77: 0.3 | Q77: 0.588 | R77: 11.5*0.3*0.588 | S77: 2.029
A78: 76 | B78: GHJ-38 | C78: 钢桁架-38 | D78: HN200*100*5.5*8 | E78: 根 | F78: 3 | L78: 56.3 | M78: 168.9 | O78: 2.889 | P78: 0.1 | Q78: 0.2 | R78: 2.889*0.1*0.2 | S78: 0.173
A79: 77 | B79: GHJ-39 | C79: 钢桁架-39 | D79: HN200*100*5.5*8 | E79: 根 | F79: 36 | L79: 52.2 | M79: 1879.2 | O79: 2.687 | P79: 0.1 | Q79: 0.2 | R79: 2.687*0.1*0.2 | S79: 1.935
A80: 78 | B80: GHJ-40 | C80: 钢桁架-40 | D80: HN200*100*5.5*8 | E80: 根 | F80: 72 | L80: 51.2 | M80: 3686.4 | O80: 2.637 | P80: 0.1 | Q80: 0.2 | R80: 2.637*0.1*0.2 | S80: 3.797
A81: 79 | B81: GHJ-41 | C81: 钢桁架-41 | D81: HN200*100*5.5*8 | E81: 根 | F81: 3 | L81: 57.4 | M81: 172.2 | O81: 2.939 | P81: 0.1 | Q81: 0.2 | R81: 2.939*0.1*0.2 | S81: 0.176
A82: 80 | B82: GHJ-42 | C82: 钢桁架-42 | D82: HN200*100*5.5*8 | E82: 根 | F82: 3 | L82: 48.1 | M82: 144.3 | O82: 2.486 | P82: 0.1 | Q82: 0.2 | R82: 2.486*0.1*0.2 | S82: 0.149
A83: 81 | B83: GHJ-43 | C83: 钢桁架-43 | D83: HN200*100*5.5*8 | E83: 根 | F83: 87 | L83: 58.4 | M83: 5080.8 | O83: 2.989 | P83: 0.1 | Q83: 0.2 | R83: 2.989*0.1*0.2 | S83: 5.201
A84: 82 | B84: GHJ-44 | C84: 钢桁架-44 | D84: HN200*100*5.5*8 | E84: 根 | F84: 3 | L84: 77 | M84: 231 | O84: 3.895 | P84: 0.1 | Q84: 0.2 | R84: 3.895*0.1*0.2 | S84: 0.234
A85: 83 | B85: GHJ1-1 | C85: 钢桁架1-1 | D85: HM294*200*8*12 | E85: 根 | F85: 1 | L85: 217.4 | M85: 217.4 | O85: 3.798 | P85: 0.27 | Q85: 0.294 | R85: 3.798*0.27*0.294 | S85: 0.301
A86: 84 | B86: GHJ1-2 | C86: 钢桁架1-2 | D86: HM294*200*8*12 | E86: 根 | F86: 1 | L86: 217.4 | M86: 217.4 | O86: 3.798 | P86: 0.27 | Q86: 0.294 | R86: 3.798*0.27*0.294 | S86: 0.301
A87: 85 | B87: GHJ1-3 | C87: 钢桁架1-3 | D87: HM294*200*8*12 | E87: 根 | F87: 1 | L87: 217.4 | M87: 217.4 | O87: 3.663 | P87: 0.431 | Q87: 0.294 | R87: 3.663*0.431*0.294 | S87: =O87*P87*Q87*F87 -> 0.464
A88: 86 | B88: GHJ1-4 | C88: 钢桁架1-4 | D88: HM294*200*8*12 | E88: 根 | F88: 1 | L88: 217.4 | M88: 217.4 | O88: 3.663 | P88: 0.431 | Q88: 0.294 | R88: 3.663*0.431*0.294 | S88: 0.464
A89: 87 | B89: GHJ1-5 | C89: 钢桁架1-5 | D89: HM294*200*8*12 | E89: 根 | F89: 7 | L89: 259.3 | M89: 1815.1 | O89: 4.67 | P89: 0.2 | Q89: 0.294 | R89: 4.67*0.2*0.294 | S89: 1.922
A90: 88 | B90: GHJ1-6 | C90: 钢桁架1-6 | D90: HM294*200*8*12 | E90: 片 | F90: 1 | L90: 2291.9 | M90: 2291.9 | O90: 12.027 | P90: 3.057 | Q90: 0.431 | R90: 12.027*3.057*0.431 | S90: 15.846
A91: 89 | B91: GHJ1-7 | C91: 钢桁架1-7 | D91: HM294*200*8*12 | E91: 根 | F91: 1 | L91: 259.3 | M91: 259.3 | O91: 4.67 | P91: 0.2 | Q91: 0.294 | R91: 4.67*0.2*0.294 | S91: 0.275
A92: 90 | B92: GHJ1-8 | C92: 钢桁架1-8 | D92: HM294*200*8*12 | E92: 根 | F92: 2 | L92: 239.2 | M92: 478.4 | O92: 4.394 | P92: 0.2 | Q92: 0.294 | R92: 4.394*0.2*0.294 | S92: 0.517
A93: 91 | B93: GHJ1-9 | C93: 钢桁架1-9 | D93: HM294*200*8*12 | E93: 根 | F93: 1 | L93: 251.3 | M93: 251.3 | O93: 4.394 | P93: 0.2 | Q93: 0.294 | R93: 4.394*0.2*0.294 | S93: 0.258
A94: 92 | B94: GHJ1-10 | C94: 钢桁架1-10 | D94: HM294*200*8*12 | E94: 根 | F94: 1 | L94: 251.3 | M94: 251.3 | O94: 4.394 | P94: 0.2 | Q94: 0.294 | R94: 4.394*0.2*0.294 | S94: 0.258
A95: 93 | B95: GHJ1-11 | C95: 钢桁架1-11 | D95: HM294*200*8*12 | E95: 片 | F95: 1 | L95: 2291.9 | M95: 2291.9 | O95: 12.027 | P95: 3.057 | Q95: 0.431 | R95: 12.027*3.057*0.431 | S95: 15.846
A96: 94 | B96: GHJ1-12 | C96: 钢桁架1-12 | D96: HM294*200*8*12 | E96: 片 | F96: 1 | L96: 2680.8 | M96: 2680.8 | O96: 13.928 | P96: 3.057 | Q96: 0.431 | R96: 13.928*3.057*0.431 | S96: 18.351
A97: 95 | B97: GHJ1-13 | C97: 钢桁架1-13 | D97: HM294*200*8*12 | E97: 片 | F97: 1 | L97: 2680.8 | M97: 2680.8 | O97: 13.928 | P97: 3.057 | Q97: 0.431 | R97: 13.928*3.057*0.431 | S97: 18.351
A98: 96 | B98: GHJ1-14 | C98: 钢桁架1-14 | D98: HN200*100*5.5*8 | E98: 根 | F98: 3 | L98: 67.1 | M98: 201.3 | O98: 3.414 | P98: 0.1 | Q98: 0.2 | R98: 3.414*0.1*0.2 | S98: 0.205
A99: 97 | B99: GHJ1-15 | C99: 钢桁架1-15 | D99: HW150*150*7*10 | E99: 根 | F99: 1 | L99: 141.7 | M99: 141.7 | O99: 4.692 | P99: 0.15 | Q99: 0.15 | R99: 4.692*0.15*0.15 | S99: 0.106
A100: 98 | B100: GHJ1-16 | C100: 钢桁架1-16 | D100: HW150*150*7*10 | E100: 根 | F100: 2 | L100: 118.6 | M100: 237.2 | O100: 3.939 | P100: 0.27 | Q100: 0.15 | R100: 3.939*0.27*0.15 | S100: 0.319
A101: 99 | B101: GHJ1-17 | C101: 钢桁架1-17 | D101: HW150*150*7*10 | E101: 根 | F101: 2 | L101: 76.9 | M101: 153.8 | O101: 2.53 | P101: 0.15 | Q101: 0.15 | R101: 2.53*0.15*0.15 | S101: 0.114
A102: 100 | B102: GHJ1-18 | C102: 钢桁架1-18 | D102: HW150*150*7*10 | E102: 根 | F102: 2 | L102: 121.5 | M102: 243 | O102: 4.13 | P102: 0.15 | Q102: 0.15 | R102: 4.13*0.15*0.15 | S102: 0.186
A103: 101 | B103: GHJ1-19 | C103: 钢桁架1-19 | D103: HW150*150*7*10 | E103: 根 | F103: 7 | L103: 141.4 | M103: 989.8 | O103: 4.692 | P103: 0.15 | Q103: 0.15 | R103: 4.692*0.15*0.15 | S103: 0.739
A104: 102 | B104: GHJ1-20 | C104: 钢桁架1-20 | D104: HN200*100*5.5*8 | E104: 根 | F104: 3 | L104: 71.4 | M104: 214.2 | O104: 3.623 | P104: 0.1 | Q104: 0.2 | R104: 3.623*0.1*0.2 | S104: 0.217
A105: 103 | B105: GHJ1-21 | C105: 钢桁架1-21 | D105: HN200*100*5.5*8 | E105: 根 | F105: 18 | L105: 58.9 | M105: 1060.2 | O105: 3.014 | P105: 0.1 | Q105: 0.2 | R105: 3.014*0.1*0.2 | S105: 1.085
A106: 104 | B106: GHJ1-22 | C106: 钢桁架1-22 | D106: HN200*100*5.5*8 | E106: 根 | F106: 3 | L106: 67.2 | M106: 201.6 | O106: 3.42 | P106: 0.1 | Q106: 0.2 | R106: 3.42*0.1*0.2 | S106: 0.205
A107: 105 | B107: GHJ2-1 | C107: 钢桁架2-1 | D107: HM294*200*8*12 | E107: 根 | F107: 7 | L107: 259.3 | M107: 1815.1 | O107: 4.67 | P107: 0.2 | Q107: 0.294 | R107: 4.67*0.2*0.294 | S107: 1.922
A108: 106 | B108: GHJ2-2 | C108: 钢桁架2-2 | D108: HM294*200*8*12 | E108: 根 | F108: 2 | L108: 239.2 | M108: 478.4 | O108: 4.394 | P108: 0.2 | Q108: 0.294 | R108: 4.394*0.2*0.294 | S108: 0.517
A109: 107 | B109: GHJ2-3 | C109: 钢桁架2-3 | D109: HM294*200*8*12 | E109: 根 | F109: 1 | L109: 251.3 | M109: 251.3 | O109: 4.394 | P109: 0.2 | Q109: 0.294 | R109: 4.394*0.2*0.294 | S109: 0.258
A110: 108 | B110: GHJ2-4 | C110: 钢桁架2-4 | D110: HM294*200*8*12 | E110: 根 | F110: 1 | L110: 251.3 | M110: 251.3 | O110: 4.394 | P110: 0.2 | Q110: 0.294 | R110: 4.394*0.2*0.294 | S110: 0.258
A111: 109 | B111: GHJ2-5 | C111: 钢桁架2-5 | D111: HM294*200*8*12 | E111: 片 | F111: 1 | L111: 2196.3 | M111: 2196.3 | O111: 11.241 | P111: 3.054 | Q111: 0.431 | R111: 11.241*3.054*0.431 | S111: 14.796
A112: 110 | B112: GHJ2-6 | C112: 钢桁架2-6 | D112: HM294*200*8*12 | E112: 片 | F112: 1 | L112: 2196.3 | M112: 2196.3 | O112: 11.241 | P112: 3.054 | Q112: 0.431 | R112: 11.241*3.054*0.431 | S112: 14.796
A113: 111 | B113: GHJ2-7 | C113: 钢桁架2-7 | D113: HM294*200*8*12 | E113: 片 | F113: 1 | L113: 2608.9 | M113: 2608.9 | O113: 13.6 | P113: 3.054 | Q113: 0.431 | R113: 13.6*3.054*0.431 | S113: 17.901
A114: 112 | B114: GHJ2-8 | C114: 钢桁架2-8 | D114: HM294*200*8*12 | E114: 片 | F114: 1 | L114: 2611.4 | M114: 2611.4 | O114: 13.6 | P114: 3.054 | Q114: 0.431 | R114: 13.6*3.054*0.431 | S114: 17.901
A115: 113 | B115: GHJ2-9 | C115: 钢桁架2-9 | D115: HN200*100*5.5*8 | E115: 根 | F115: 3 | L115: 55.8 | M115: 167.4 | O115: 2.862 | P115: 0.1 | Q115: 0.2 | R115: 2.862*0.1*0.2 | S115: 0.172
A116: 114 | B116: GHJ2-10 | C116: 钢桁架2-10 | D116: HW150*150*7*10 | E116: 根 | F116: 2 | L116: 121.4 | M116: 242.8 | O116: 4.128 | P116: 0.15 | Q116: 0.15 | R116: 4.128*0.15*0.15 | S116: 0.186
A117: 115 | B117: GHJ2-11 | C117: 钢桁架2-11 | D117: HW150*150*7*10 | E117: 根 | F117: 7 | L117: 141.4 | M117: 989.8 | O117: 4.692 | P117: 0.15 | Q117: 0.15 | R117: 4.692*0.15*0.15 | S117: 0.739
A118: 116 | B118: GHJ2-12 | C118: 钢桁架2-12 | D118: HN200*100*5.5*8 | E118: 根 | F118: 3 | L118: 55.7 | M118: 167.1 | O118: 2.856 | P118: 0.1 | Q118: 0.2 | R118: 2.856*0.1*0.2 | S118: 0.171
A119: 117 | B119: GHJ2-13 | C119: 钢桁架2-13 | D119: HN200*100*5.5*8 | E119: 根 | F119: 18 | L119: 58.9 | M119: 1060.2 | O119: 3.014 | P119: 0.1 | Q119: 0.2 | R119: 3.014*0.1*0.2 | S119: 1.085
A120: 118 | B120: GHJ3-1 | C120: 钢桁架3-1 | D120: HM294*200*8*12 | E120: 根 | F120: 2 | L120: 239.2 | M120: 478.4 | O120: 4.394 | P120: 0.2 | Q120: 0.294 | R120: 4.394*0.2*0.294 | S120: 0.517
A121: 119 | B121: GHJ3-2 | C121: 钢桁架3-2 | D121: HM294*200*8*12 | E121: 根 | F121: 1 | L121: 251.3 | M121: 251.3 | O121: 4.394 | P121: 0.2 | Q121: 0.294 | R121: 4.394*0.2*0.294 | S121: 0.258
A122: 120 | B122: GHJ3-3 | C122: 钢桁架3-3 | D122: HM294*200*8*12 | E122: 片 | F122: 1 | L122: 2032.8 | M122: 2032.8 | O122: 9.6 | P122: 3.076 | Q122: 0.431 | R122: 9.6*3.076*0.431 | S122: 12.727
A123: 121 | B123: GHJ3-4 | C123: 钢桁架3-4 | D123: HM294*200*8*12 | E123: 片 | F123: 1 | L123: 2032.8 | M123: 2032.8 | O123: 9.6 | P123: 3.076 | Q123: 0.431 | R123: 9.6*3.076*0.431 | S123: 12.727
A124: 122 | B124: GHJ3-5 | C124: 钢桁架3-5 | D124: HM294*200*8*12 | E124: 片 | F124: 1 | L124: 2072.1 | M124: 2072.1 | O124: 10.298 | P124: 3.076 | Q124: 0.431 | R124: 10.298*3.076*0.431 | S124: 13.653
A125: 123 | B125: GHJ3-6 | C125: 钢桁架3-6 | D125: HM294*200*8*12 | E125: 片 | F125: 1 | L125: 2072.1 | M125: 2072.1 | O125: 10.298 | P125: 3.076 | Q125: 0.431 | R125: 10.298*3.076*0.431 | S125: 13.653
A126: 124 | B126: GHJ3-7 | C126: 钢桁架3-7 | D126: HM294*200*8*12 | E126: 片 | F126: 1 | L126: 1666.3 | M126: 1666.3 | O126: 10.195 | P126: 3.076 | Q126: 0.431 | R126: 10.195*3.076*0.431 | S126: 13.516
A127: 125 | B127: GHJ3-8 | C127: 钢桁架3-8 | D127: HM294*200*8*12 | E127: 片 | F127: 1 | L127: 1666.3 | M127: 1666.3 | O127: 10.195 | P127: 3.076 | Q127: 0.431 | R127: 10.195*3.076*0.431 | S127: 13.516
A128: 126 | B128: GHJ3-9 | C128: 钢桁架3-9 | D128: HM294*200*8*12 | E128: 根 | F128: 9 | L128: 256.9 | M128: 2312.1 | O128: 4.48 | P128: 0.2 | Q128: 0.294 | R128: 4.48*0.2*0.294 | S128: 2.371
A129: 127 | B129: GHJ3-10 | C129: 钢桁架3-10 | D129: HW150*150*7*10 | E129: 根 | F129: 2 | L129: 104.1 | M129: 208.2 | O129: 3.515 | P129: 0.15 | Q129: 0.15 | R129: 3.515*0.15*0.15 | S129: 0.158
A130: 128 | B130: GHJ3-11 | C130: 钢桁架3-11 | D130: HW150*150*7*10 | E130: 根 | F130: 2 | L130: 116.1 | M130: 232.2 | O130: 3.936 | P130: 0.15 | Q130: 0.15 | R130: 3.936*0.15*0.15 | S130: 0.177
A131: 129 | B131: GHJ3-12 | C131: 钢桁架3-12 | D131: HW150*150*7*10 | E131: 根 | F131: 9 | L131: 141.4 | M131: 1272.6 | O131: 4.692 | P131: 0.15 | Q131: 0.15 | R131: 4.692*0.15*0.15 | S131: 0.950
A132: 130 | B132: GHJ3-13 | C132: 钢桁架3-13 | D132: HN200*100*5.5*8 | E132: 根 | F132: 30 | L132: 56.3 | M132: =F132*L132 -> 1689 | O132: 2.889 | P132: 0.1 | Q132: 0.2 | R132: 2.889*0.1*0.2 | S132: 1.733
A133: 131 | B133: GHJ3-14 | C133: 钢桁架3-14 | D133: HM294*200*8*12 | E133: 根 | F133: 1 | L133: 251.3 | M133: 251.3 | O133: 4.394 | P133: 0.2 | Q133: 0.294 | R133: 4.394*0.2*0.294 | S133: 0.258
A134: 132 | B134: GHJ4-1 | C134: 钢桁架4-1 | D134: HM294*200*8*12 | E134: 根 | F134: 18 | L134: 257.3 | M134: 4631.4 | O134: 4.67 | P134: 0.2 | Q134: 0.294 | R134: 4.67*0.2*0.294 | S134: 4.943
A135: 133 | B135: GHJ4-2 | C135: 钢桁架4-2 | D135: HM294*200*8*12 | E135: 根 | F135: 2 | L135: 257.3 | M135: 514.6 | O135: 4.67 | P135: 0.2 | Q135: 0.294 | R135: 4.67*0.2*0.294 | S135: 0.549
A136: 134 | B136: GHJ4-3 | C136: 钢桁架4-3 | D136: HM294*200*8*12 | E136: 根 | F136: 2 | L136: 257.3 | M136: 514.6 | O136: 4.67 | P136: 0.2 | Q136: 0.294 | R136: 4.67*0.2*0.294 | S136: 0.549
A137: 135 | B137: GHJ4-4 | C137: 钢桁架4-4 | D137: HM340*250*9*14 | E137: 片 | F137: 2 | L137: 4300.9 | M137: 8601.8 | O137: 14.02 | P137: 3.817 | Q137: 0.456 | R137: 14.02*3.817*0.456 | S137: 48.805
A138: 136 | B138: GHJ4-5 | C138: 钢桁架4-5 | D138: HW200*200*8*12 | E138: 根 | F138: 4 | L138: 202.7 | M138: 810.8 | O138: 4.315 | P138: 0.2 | Q138: 0.2 | R138: 4.315*0.2*0.2 | S138: 0.690
A139: 137 | B139: GHJ4-6 | C139: 钢桁架4-6 | D139: HW200*200*8*12 | E139: 根 | F139: 4 | L139: 226.2 | M139: 904.8 | O139: 4.834 | P139: 0.2 | Q139: 0.2 | R139: 4.834*0.2*0.2 | S139: 0.773
A140: 138 | B140: GHJ4-7 | C140: 钢桁架4-7 | D140: HM340*250*9*14 | E140: 片 | F140: 1 | L140: 4339.2 | M140: 4339.2 | O140: 14.02 | P140: 3.817 | Q140: 0.456 | R140: 14.02*3.817*0.456 | S140: 24.403
A141: 139 | B141: GHJ4-8 | C141: 钢桁架4-8 | D141: HM340*250*9*14 | E141: 片 | F141: 1 | L141: 4335.1 | M141: 4335.1 | O141: 14.02 | P141: 3.817 | Q141: 0.456 | R141: 14.02*3.817*0.456 | S141: 24.403
A142: 140 | B142: GHJ4-9 | C142: 钢桁架4-9 | D142: HM340*250*9*14 | E142: 片 | F142: 2 | L142: 4301 | M142: 8602 | O142: 14.02 | P142: 3.817 | Q142: 0.456 | R142: 14.02*3.817*0.456 | S142: 48.805
A143: 141 | B143: GHJ4-10 | C143: 钢桁架4-10 | D143: HM340*250*9*14 | E143: 片 | F143: 1 | L143: 4336.2 | M143: 4336.2 | O143: 14.28 | P143: 3.817 | Q143: 0.456 | R143: 14.28*3.817*0.456 | S143: 24.855
A144: 142 | B144: GHJ4-11 | C144: 钢桁架4-11 | D144: HM340*250*9*14 | E144: 片 | F144: 1 | L144: 4360.2 | M144: 4360.2 | O144: 14.28 | P144: 3.817 | Q144: 0.456 | R144: 14.28*3.817*0.456 | S144: 24.855
A145: 143 | B145: GHJ4-12 | C145: 钢桁架4-12 | D145: HM340*250*9*14 | E145: 根 | F145: 4 | L145: 332.5 | M145: 1330 | O145: 4.33 | P145: 0.25 | Q145: 0.34 | R145: 4.33*0.25*0.34 | S145: 1.472
A146: 144 | B146: GHJ4-13 | C146: 钢桁架4-13 | D146: HM340*250*9*14 | E146: 根 | F146: 4 | L146: 356.1 | M146: 1424.4 | O146: 4.33 | P146: 0.432 | Q146: 0.34 | R146: 4.33*0.432*0.34 | S146: 2.544
A147: 145 | B147: GHJ4-14 | C147: 钢桁架4-14 | D147: HM340*250*9*14 | E147: 片 | F147: 2 | L147: 3041.9 | M147: 6083.8 | O147: 13.2 | P147: 3.817 | Q147: 0.456 | R147: 13.2*3.817*0.456 | S147: 45.951
A148: 146 | B148: GHJ4-15 | C148: 钢桁架4-15 | D148: HM340*250*9*14 | E148: 片 | F148: 2 | L148: 3041.9 | M148: 6083.8 | O148: 13.2 | P148: 3.817 | Q148: 0.456 | R148: 13.2*3.817*0.456 | S148: 45.951
A149: 147 | B149: GHJ4-16 | C149: 钢桁架4-16 | D149: HW150*150*7*10 | E149: 根 | F149: 4 | L149: 141.1 | M149: 564.4 | O149: 4.691 | P149: 0.15 | Q149: 0.15 | R149: 4.691*0.15*0.15 | S149: 0.422
A150: 148 | B150: GHJ4-17 | C150: 钢桁架4-17 | D150: HW150*150*7*10 | E150: 根 | F150: 18 | L150: 140.7 | M150: 2532.6 | O150: 4.691 | P150: 0.15 | Q150: 0.15 | R150: 4.691*0.15*0.15 | S150: 1.900
A151: 149 | B151: GHJ4-18 | C151: 钢桁架4-18 | D151: HN200*100*5.5*8 | E151: 根 | F151: 12 | L151: 67.7 | M151: 812.4 | O151: 3.373 | P151: 0.1 | Q151: 0.2 | R151: 3.373*0.1*0.2 | S151: =O151*P151*Q151*F151 -> 0.810
A152: 150 | B152: GHJ4-19 | C152: 钢桁架4-19 | D152: HN200*100*5.5*8 | E152: 根 | F152: 6 | L152: 53.3 | M152: 319.8 | O152: 2.668 | P152: 0.1 | Q152: 0.2 | R152: 2.668*0.1*0.2 | S152: 0.320
A153: 151 | B153: GHJ4-20 | C153: 钢桁架4-20 | D153: HN200*100*5.5*8 | E153: 根 | F153: 6 | L153: 53.3 | M153: 319.8 | O153: 2.672 | P153: 0.1 | Q153: 0.2 | R153: 2.672*0.1*0.2 | S153: 0.321
A154: 152 | B154: GHJ4-21 | C154: 钢桁架4-21 | D154: HN200*100*5.5*8 | E154: 根 | F154: 48 | L154: 68.7 | M154: 3297.6 | O154: 3.493 | P154: 0.1 | Q154: 0.2 | R154: 3.493*0.1*0.2 | S154: 3.353
A155: 153 | B155: GHJ5-1 | C155: 钢桁架5-1 | D155: HW250*250*9*14 | E155: 根 | F155: 8 | L155: 455.5 | M155: 3644 | O155: 6.694 | P155: 0.25 | Q155: 0.25 | R155: 6.694*0.25*0.25 | S155: 3.347
A156: 154 | B156: GHJ5-2 | C156: 钢桁架5-2 | D156: HM294*200*8*12 | E156: 根 | F156: 24 | L156: 246.4 | M156: 5913.6 | O156: 4.511 | P156: 0.2 | Q156: 0.294 | R156: 4.511*0.2*0.294 | S156: 6.366
A157: 155 | B157: GHJ5-3 | C157: 钢桁架5-3 | D157: HM294*200*8*12 | E157: 根 | F157: 6 | L157: 245.1 | M157: 1470.6 | O157: 4.486 | P157: 0.2 | Q157: 0.294 | R157: 4.486*0.2*0.294 | S157: 1.583
A158: 156 | B158: GHJ5-4 | C158: 钢桁架5-4 | D158: HW250*250*9*14 | E158: 根 | F158: 2 | L158: 449.8 | M158: 899.6 | O158: 6.618 | P158: 0.25 | Q158: 0.25 | R158: 6.618*0.25*0.25 | S158: 0.827
A159: 157 | B159: GHJ5-5 | C159: 钢桁架5-5 | D159: HM294*200*8*12 | E159: 根 | F159: 3 | L159: 236.8 | M159: 710.4 | O159: 4.335 | P159: 0.2 | Q159: 0.294 | R159: 4.335*0.2*0.294 | S159: 0.765
A160: 158 | B160: GHJ5-6 | C160: 钢桁架5-6 | D160: HM294*200*8*12 | E160: 根 | F160: 3 | L160: 289.1 | M160: 867.3 | O160: 5.291 | P160: 0.2 | Q160: 0.294 | R160: 5.291*0.2*0.294 | S160: 0.933
A161: 159 | B161: GHJ5-7 | C161: 钢桁架5-7 | D161: HM550*300*11*18 | E161: 根 | F161: 1 | L161: 2054.3 | M161: 2054.3 | O161: 14 | P161: 0.561 | Q161: 0.731 | R161: 14*0.561*0.731 | S161: 5.741
A162: 160 | B162: GHJ5-8 | C162: 钢桁架5-8 | D162: HM550*300*11*18 | E162: 根 | F162: 1 | L162: 2054.3 | M162: 2054.3 | O162: 14 | P162: 0.561 | Q162: 0.731 | R162: 14*0.561*0.731 | S162: 5.741
A163: 161 | B163: GHJ5-9 | C163: 钢桁架5-9 | D163: HM550*300*11*18 | E163: 根 | F163: 1 | L163: 2070.5 | M163: 2070.5 | O163: 14 | P163: 0.561 | Q163: 0.731 | R163: 14*0.561*0.731 | S163: 5.741
A164: 162 | B164: GHJ5-10 | C164: 钢桁架5-10 | D164: HM550*300*11*18 | E164: 根 | F164: 1 | L164: 2070.5 | M164: 2070.5 | O164: 14 | P164: 0.561 | Q164: 0.731 | R164: 14*0.561*0.731 | S164: 5.741
A165: 163 | B165: GHJ5-11 | C165: 钢桁架5-11 | D165: HM550*300*11*18 | E165: 根 | F165: 1 | L165: 2027.1 | M165: 2027.1 | O165: 14 | P165: 0.39 | Q165: 0.731 | R165: 14*0.39*0.731 | S165: 3.991
A166: 164 | B166: GHJ5-12 | C166: 钢桁架5-12 | D166: HM550*300*11*18 | E166: 根 | F166: 1 | L166: 2010.8 | M166: 2010.8 | O166: 14 | P166: 0.39 | Q166: 0.731 | R166: 14*0.39*0.731 | S166: 3.991
A167: 165 | B167: GHJ5-13 | C167: 钢桁架5-13 | D167: HM550*300*11*18 | E167: 根 | F167: 1 | L167: 2027.1 | M167: 2027.1 | O167: 14 | P167: 0.39 | Q167: 0.731 | R167: 14*0.39*0.731 | S167: 3.991
A168: 166 | B168: GHJ5-14 | C168: 钢桁架5-14 | D168: HM550*300*11*18 | E168: 根 | F168: 1 | L168: 2010.8 | M168: 2010.8 | O168: 14 | P168: 0.39 | Q168: 0.731 | R168: 14*0.39*0.731 | S168: 3.991
A169: 167 | B169: GHJ5-15 | C169: 钢桁架5-15 | D169: HM550*300*11*18 | E169: 根 | F169: 1 | L169: 1569.6 | M169: 1569.6 | O169: 11.239 | P169: 0.39 | Q169: 0.731 | R169: 11.239*0.39*0.731 | S169: 3.204
A170: 168 | B170: GHJ5-16 | C170: 钢桁架5-16 | D170: HM550*300*11*18 | E170: 根 | F170: 1 | L170: 1569.6 | M170: 1569.6 | O170: 11.239 | P170: 0.39 | Q170: 0.731 | R170: 11.239*0.39*0.731 | S170: 3.204
A171: 169 | B171: GHJ5-17 | C171: 钢桁架5-17 | D171: HM550*300*11*18 | E171: 根 | F171: 1 | L171: 979.7 | M171: 979.7 | O171: 7.195 | P171: 0.39 | Q171: 0.731 | R171: 7.195*0.39*0.731 | S171: 2.051
A172: 170 | B172: GHJ5-18 | C172: 钢桁架5-18 | D172: HM550*300*11*18 | E172: 根 | F172: 1 | L172: 979.7 | M172: 979.7 | O172: 7.195 | P172: 0.39 | Q172: 0.731 | R172: 7.195*0.39*0.731 | S172: 2.051
A173: 171 | B173: GHJ5-19 | C173: 钢桁架5-19 | D173: HM550*300*11*18 | E173: 根 | F173: 1 | L173: 1705 | M173: 1705 | O173: 11.64 | P173: 0.561 | Q173: 0.731 | R173: 11.64*0.561*0.731 | S173: 4.773
A174: 172 | B174: GHJ5-20 | C174: 钢桁架5-20 | D174: HM550*300*11*18 | E174: 根 | F174: 1 | L174: 1705 | M174: 1705 | O174: 11.64 | P174: 0.561 | Q174: 0.731 | R174: 11.64*0.561*0.731 | S174: 4.773
A175: 173 | B175: GHJ5-21 | C175: 钢桁架5-21 | D175: HM550*300*11*18 | E175: 根 | F175: 1 | L175: 1131.6 | M175: 1131.6 | O175: 7.912 | P175: 0.561 | Q175: 0.731 | R175: 7.912*0.561*0.731 | S175: 3.245
A176: 174 | B176: GHJ5-22 | C176: 钢桁架5-22 | D176: HM550*300*11*18 | E176: 根 | F176: 1 | L176: 1131.6 | M176: 1131.6 | O176: 7.912 | P176: 0.561 | Q176: 0.731 | R176: 7.912*0.561*0.731 | S176: 3.245
A177: 175 | B177: GHJ5-23 | C177: 钢桁架5-23 | D177: HM340*250*9*14 | E177: 根 | F177: 1 | L177: 364.6 | M177: 364.6 | O177: 4.38 | P177: 0.345 | Q177: 0.34 | R177: 4.38*0.345*0.34 | S177: 0.514
A178: 176 | B178: GHJ5-24 | C178: 钢桁架5-24 | D178: HM340*250*9*14 | E178: 根 | F178: 1 | L178: 364.6 | M178: 364.6 | O178: 4.38 | P178: 0.345 | Q178: 0.34 | R178: 4.38*0.345*0.34 | S178: 0.514
A179: 177 | B179: GHJ5-25 | C179: 钢桁架5-25 | D179: HM340*250*9*14 | E179: 根 | F179: 9 | L179: 370.9 | M179: 3338.1 | O179: 4.38 | P179: 0.44 | Q179: 0.34 | R179: 4.38*0.44*0.34 | S179: 5.897
A180: 178 | B180: GHJ5-26 | C180: 钢桁架5-26 | D180: HM340*250*9*14 | E180: 根 | F180: 11 | L180: 337.2 | M180: 3709.2 | O180: 4.38 | P180: 0.25 | Q180: 0.34 | R180: 4.38*0.25*0.34 | S180: 4.095
A181: 179 | B181: GHJ5-27 | C181: 钢桁架5-27 | D181: HM550*300*11*18 | E181: 根 | F181: 1 | L181: 713.1 | M181: 713.1 | O181: 5.162 | P181: 0.39 | Q181: 0.731 | R181: 5.162*0.39*0.731 | S181: 1.472
A182: 180 | B182: GHJ5-28 | C182: 钢桁架5-28 | D182: HM550*300*11*18 | E182: 根 | F182: 1 | L182: 713.1 | M182: 713.1 | O182: 5.162 | P182: 0.39 | Q182: 0.731 | R182: 5.162*0.39*0.731 | S182: 1.472
A183: 181 | B183: GHJ5-29 | C183: 钢桁架5-29 | D183: HM550*300*11*18 | E183: 根 | F183: 1 | L183: 585.7 | M183: 585.7 | O183: 4.144 | P183: 0.39 | Q183: 0.731 | R183: 4.144*0.39*0.731 | S183: 1.181
A184: 182 | B184: GHJ5-30 | C184: 钢桁架5-30 | D184: HM550*300*11*18 | E184: 根 | F184: 1 | L184: 585.7 | M184: 585.7 | O184: 4.144 | P184: 0.39 | Q184: 0.731 | R184: 4.144*0.39*0.731 | S184: 1.181
A185: 183 | B185: GHJ5-31 | C185: 钢桁架5-31 | D185: HM550*300*11*18 | E185: 根 | F185: 1 | L185: 1087.5 | M185: 1087.5 | O185: 5.766 | P185: 1.417 | Q185: 0.745 | R185: 5.766*1.417*0.745 | S185: 6.087
A186: 184 | B186: GHJ5-32 | C186: 钢桁架5-32 | D186: HM550*300*11*18 | E186: 根 | F186: 1 | L186: 1087.9 | M186: 1087.9 | O186: 5.766 | P186: 1.417 | Q186: 0.745 | R186: 5.766*1.417*0.745 | S186: 6.087
A187: 185 | B187: GHJ5-33 | C187: 钢桁架5-33 | D187: HM550*300*11*18 | E187: 根 | F187: 1 | L187: 1068.6 | M187: 1068.6 | O187: 5.801 | P187: 1.417 | Q187: 0.745 | R187: 5.801*1.417*0.745 | S187: 6.124
A188: 186 | B188: GHJ5-34 | C188: 钢桁架5-34 | D188: HM550*300*11*18 | E188: 根 | F188: 1 | L188: 1068.6 | M188: 1068.6 | O188: 5.801 | P188: 1.417 | Q188: 0.745 | R188: 5.801*1.417*0.745 | S188: 6.124
A189: 187 | B189: GHJ5-35 | C189: 钢桁架5-35 | D189: HM550*300*11*18 | E189: 根 | F189: 2 | L189: 741.8 | M189: 1483.6 | O189: 6.045 | P189: 0.514 | Q189: 0.55 | R189: 6.045*0.514*0.55 | S189: 3.418
A190: 188 | B190: GHJ5-36 | C190: 钢桁架5-36 | D190: HM550*300*11*18 | E190: 根 | F190: 2 | L190: 821.9 | M190: 1643.8 | O190: 6.772 | P190: 0.514 | Q190: 0.55 | R190: 6.772*0.514*0.55 | S190: 3.829
A191: 189 | B191: GHJ5-37 | C191: 钢桁架5-37 | D191: HM550*300*11*18 | E191: 根 | F191: 2 | L191: 532.1 | M191: 1064.2 | O191: 4.138 | P191: 0.3 | Q191: 0.55 | R191: 4.138*0.3*0.55 | S191: 1.366
A192: 190 | B192: GHJ5-38 | C192: 钢桁架5-38 | D192: HM550*300*11*18 | E192: 根 | F192: 1 | L192: 585.9 | M192: 585.9 | O192: 4.138 | P192: 0.48 | Q192: 0.55 | R192: 4.138*0.48*0.55 | S192: 1.092
A193: 191 | B193: GHJ5-39 | C193: 钢桁架5-39 | D193: HM550*300*11*18 | E193: 根 | F193: 1 | L193: 585.9 | M193: 585.9 | O193: 4.138 | P193: 0.48 | Q193: 0.55 | R193: 4.138*0.48*0.55 | S193: 1.092
A194: 192 | B194: GHJ5-40 | C194: 钢桁架5-40 | D194: HM550*300*11*18 | E194: 根 | F194: 1 | L194: 805 | M194: 805 | O194: 5.618 | P194: 0.561 | Q194: 0.731 | R194: 5.618*0.561*0.731 | S194: 2.304
A195: 193 | B195: GHJ5-41 | C195: 钢桁架5-41 | D195: HM550*300*11*18 | E195: 根 | F195: 1 | L195: 805 | M195: 805 | O195: 5.618 | P195: 0.561 | Q195: 0.731 | R195: 5.618*0.561*0.731 | S195: 2.304
A196: 194 | B196: GHJ5-42 | C196: 钢桁架5-42 | D196: HM550*300*11*18 | E196: 根 | F196: 1 | L196: 668.7 | M196: =F196*L196 -> 668.7 | O196: 4.657 | P196: 0.561 | Q196: 0.731 | R196: 4.657*0.561*0.731 | S196: 1.910
A197: 195 | B197: GHJ5-43 | C197: 钢桁架5-43 | D197: HM550*300*11*18 | E197: 根 | F197: 1 | L197: 668.7 | M197: 668.7 | O197: 4.657 | P197: 0.561 | Q197: 0.731 | R197: 4.657*0.561*0.731 | S197: 1.910
A198: 196 | B198: GHJ5-44 | C198: 钢桁架5-44 | D198: HW250*250*9*14 | E198: 根 | F198: 8 | L198: 408.2 | M198: 3265.6 | O198: 5.974 | P198: 0.25 | Q198: 0.25 | R198: 5.974*0.25*0.25 | S198: 2.987
A199: 197 | B199: GHJ5-45 | C199: 钢桁架5-45 | D199: HW250*250*9*14 | E199: 根 | F199: 22 | L199: 314.1 | M199: 6910.2 | O199: 4.475 | P199: 0.25 | Q199: 0.25 | R199: 4.475*0.25*0.25 | S199: 6.153
A200: 198 | B200: GHJ5-46 | C200: 钢桁架5-46 | D200: HW250*250*9*14 | E200: 根 | F200: 2 | L200: 437.5 | M200: 875 | O200: 6.439 | P200: 0.25 | Q200: 0.25 | R200: 6.439*0.25*0.25 | S200: 0.805
... 1025 more rows
